bitfinex/quotes_ETHUSD_20251110
["timestamp","ask_amount","ask_price","bid_price","bid_amount"]
[1762790566012,2.84171894,3519.0,3518.4,0.4633]
[1762790566219,0.001,3519.2,3518.5,0.4633]
[1762790566405,2.84164229,3519.1,3518.9,0.4722]
[1762790566611,0.001,3519.2,3519.1,0.4722]
[1762790567147,2.84165037,3519.1,3518.9,0.4633]
[1762790567353,0.001,3519.2,3519.0,0.4722]
[1762790567847,0.001,3519.2,3519.1,0.9355]
[1762790568309,0.0002,3519.2,3519.1,0.9355]
[1762790568908,0.0002,3519.2,3519.1,3.77713564]
[1762790569143,0.0002,3519.2,3519.1,4.43902213]
[1762790569717,0.0002,3519.2,3519.1,6.43444658]
[1762790569951,0.0002,3519.2,3519.1,5.69873413]
[1762790570535,0.0002,3519.2,3519.1,2.85709849]
[1762790570739,0.0002,3519.2,3519.1,2.195212]
[1762790571553,0.0002,3519.2,3519.1,5.03684764]
[1762790573751,0.0002,3519.2,3519.1,2.195212]
[1762790573962,0.0002,3519.2,3519.1,5.03684764]
[1762790575479,0.0002,3519.2,3519.1,2.195212]
[1762790575652,0.0002,3519.2,3519.1,2.47057479]
[1762790575973,0.0002,3519.2,3519.1,5.31221043]
[1762790576560,0.0002,3519.2,3519.1,2.47057479]
[1762790576721,0.0002,3519.2,3519.1,0.4722]
[1762790576917,2.84175489,3519.2,3519.1,0.4722]
[1762790577121,2.84169617,3519.1,3518.4,2.84213382]
[1762790577365,2.84194411,3518.8,3518.4,0.4925]
[1762790577681,2.84186263,3518.9,3518.3,0.1961]
[1762790577972,2.84189377,3518.8,3518.3,0.1961]
[1762790578256,2.84189377,3518.8,3518.3,1.455812]
[1762790578456,2.8417356,3519.0,3518.4,1.259712]
[1762790578658,2.84180311,3518.9,3518.4,1.259712]
[1762790579163,2.84177786,3519.0,3518.3,0.1961]
[1762790579360,2.84163564,3519.1,3518.4,1.752212]
[1762790579674,2.84193192,3518.8,3518.3,0.1961]
[1762790579879,2.84182488,3518.9,3518.3,0.1961]
[1762790580163,2.84179903,3518.9,3518.4,1.259712]
[1762790580462,0.0002,3519.2,3518.4,1.259712]
[1762790580463,0.0002,3519.2,3518.8,0.4694]
[1762790580775,0.0002,3519.2,3519.1,0.4694]
[1762790581279,0.0002,3519.2,3518.7,2.8419548]
[1762790581487,0.0002,3519.2,3518.7,3.33443235]
[1762790581764,0.0002,3519.2,3518.5,2.84211541]
[1762790581964,0.0002,3519.2,3518.3,3.03830807]
[1762790581965,2.84185556,3518.9,3518.3,3.03834162]
[1762790582124,2.84185556,3518.9,3518.3,3.52722698]
[1762790582326,0.0002,3519.2,3518.8,0.4694]
[1762790583165,0.0002,3519.2,3519.1,0.4694]
[1762790583324,0.0002,3519.2,3518.3,0.68498536]
[1762790583325,2.84163564,3519.1,3517.8,7.5]
[1762790583521,2.84260496,3517.9,3517.8,7.5]
[1762790583723,3.51000496,3517.9,3517.8,7.5]
[1762790583961,3.98790496,3517.9,3517.8,7.5]
[1762790584354,2.84276658,3517.7,3517.2,0.002]
[1762790584863,3.80606658,3517.7,3517.2,0.002]
[1762790585226,3.80606658,3517.7,3517.5,0.002]
[1762790586034,0.4854,3517.7,3517.5,0.002]
[1762790586235,3.80606658,3517.7,3517.5,0.002]
[1762790589230,4.21157058,3517.7,3517.5,0.002]
[1762790591445,3.32816658,3517.7,3517.5,0.002]
[1762790591649,3.80606658,3517.7,3517.5,0.002]
[1762790592166,3.80526658,3517.7,3517.5,0.002]
[1762790592346,3.32736658,3517.7,3517.5,0.002]
[1762790592544,0.1875,3517.9,3517.5,0.002]
[1762790592745,2.84276658,3517.7,3517.5,0.002]
[1762790593278,3.32736658,3517.7,3517.5,0.002]
[1762790593879,3.03018017,3517.9,3517.5,0.002]
[1762790594044,2.84268646,3517.8,3517.6,0.4714]
[1762790594251,0.4779,3518.5,3517.6,0.002]
[1762790594560,7.38505746,3519.0,3517.7,0.4925]
[1762790594561,0.4779,3518.9,3517.7,0.4925]
[1762790597241,0.4779,3518.9,3517.6,0.4945]
[1762790597569,2.84253514,3518.0,3517.6,0.33593865]
[1762790597751,2.84244336,3518.1,3517.6,0.002]
[1762790597946,0.4779,3518.7,3517.6,0.002]
[1762790598147,2.84252429,3518.0,3517.6,0.002]
[1762790598556,2.8424912,3518.1,3517.6,0.002]
[1762790598868,2.84258613,3518.0,3517.6,0.002]
[1762790599069,3.32014339,3518.4,3517.6,0.002]
[1762790599276,2.84276658,3517.7,3517.6,0.002]
[1762790599659,0.4846,3517.7,3517.6,0.002]
[1762790599971,2.84276658,3517.7,3517.6,0.002]
[1762790600176,0.4779,3518.7,3517.6,0.4714]
[1762790600469,2.8427509,3517.8,3517.6,0.002]
[1762790600772,2.84276658,3517.7,3517.6,0.002]
[1762790600974,3.32816658,3517.7,3517.6,0.002]
[1762790601379,3.80536658,3517.7,3517.6,0.002]
[1762790601671,4.21087058,3517.7,3517.6,0.002]
[1762790601871,3.80536658,3517.7,3517.6,0.002]
[1762790602181,0.4779,3518.2,3517.6,0.002]
[1762790602353,2.84264971,3517.9,3517.6,0.002]
[1762790602554,0.4779,3518.4,3517.6,0.002]
[1762790602755,2.84261186,3517.9,3517.6,0.002]
[1762790603083,2.8424971,3518.1,3517.6,0.002]
[1762790603238,2.8424971,3518.1,3517.6,0.4945]
[1762790603442,0.883404,3518.7,3517.6,0.82843516]
[1762790603641,2.84228018,3518.4,3517.6,0.33593516]
[1762790603873,0.1875,3519.0,3517.7,1.78063966]
[1762790604097,0.1875,3519.0,3518.3,0.6672]
[1762790604646,3.02926167,3519.0,3518.3,0.6672]
[1762790604977,3.02926167,3519.0,3518.3,1.01815922]
[1762790604978,2.84194058,3518.8,3518.3,1.01815922]
[1762790605174,0.0002,3519.2,3518.3,1.01815922]
[1762790605380,0.0002,3519.2,3518.3,0.6672]
[1762790605575,0.4733,3519.2,3518.3,0.6672]
[1762790605798,0.4733,3519.2,3518.3,0.4694]
[1762790605799,2.84210673,3518.6,3518.3,0.4694]
[1762790606099,2.84198867,3518.7,3518.3,0.4694]
[1762790606251,0.4733,3519.2,3518.3,0.4694]
[1762790606454,2.84163564,3519.1,3518.3,0.9618]
[1762790606653,0.0002,3519.2,3518.3,1.36048118]
[1762790606888,0.0002,3519.2,3518.4,0.4924]
[1762790607094,0.0002,3519.2,3518.7,2.84189674]
[1762790607298,0.0002,3519.2,3518.8,0.02841877]
[1762790607450,0.0002,3519.2,3519.1,0.658]
[1762790607657,0.0002,3519.2,3518.5,0.4924]
[1762790608166,0.0002,3519.2,3519.1,0.658]
[1762790608996,0.0002,3519.2,3519.1,4.39126169]
[1762790609686,0.0002,3519.2,3519.1,1.54962605]
[1762790609890,0.0002,3519.2,3519.1,3.99203564]
[1762790610412,0.001,3519.6,3519.5,2.84131268]
[1762790610555,0.001,3519.6,3519.5,3.72211668]
[1762790610757,0.001,3519.6,3519.5,3.80901268]
[1762790610955,0.001,3519.6,3519.5,0.9677]
[1762790611206,0.001,3519.6,3519.5,1.29208584]
[1762790611365,0.001,3519.6,3519.5,0.9677]
[1762790611558,0.001,3519.6,3519.1,0.1827]
[1762790611753,0.001,3519.6,3519.2,2.84149135]
[1762790611992,0.001,3519.6,3519.1,0.6751]
[1762790612235,2.8422588,3519.6,3519.1,0.6751]
[1762790612394,0.001,3519.6,3519.1,0.6751]
[1762790612778,2.84226119,3519.6,3519.1,0.1827]
[1762790613093,0.001,3519.6,3519.5,0.4753]
[1762790614197,0.001,3519.6,3519.2,0.4924]
[1762790614397,0.001,3519.6,3519.3,3.86]
[1762790614762,0.001,3519.6,3519.5,0.4753]
[1762790615661,0.001,3519.6,3519.5,13.97901268]
[1762790616210,0.0002,3519.6,3519.5,13.97901268]
[1762790616515,0.005,3519.9,3519.8,2.84107051]
[1762790616706,0.005,3519.9,3519.8,4.84019876]
[1762790617023,0.005,3519.9,3519.8,5.33259876]
[1762790617434,0.005,3519.9,3519.8,9.59790276]
[1762790617593,0.005,3519.9,3519.8,10.85761476]
[1762790618137,0.001,3520.0,3519.9,2.8409898]
[1762790618291,0.001,3520.0,3519.9,6.5555275]
[1762790619128,0.001,3520.0,3519.9,6.9610315]
[1762790619313,0.005,3520.9,3520.3,4.50588298]
[1762790619515,0.005,3520.9,3520.8,3.31556357]
[1762790619713,0.005,3520.9,3520.8,3.80796357]
[1762790619916,0.005,3520.9,3520.8,5.73250739]
[1762790620728,0.005,3520.9,3520.8,2.39984382]
[1762790620933,0.005,3520.9,3520.5,1.752112]
[1762790621132,0.005,3520.9,3520.5,4.59261192]
[1762790621292,0.005,3520.9,3520.6,2.84042144]
[1762790621626,0.005,3520.9,3520.8,3.31556357]
[1762790621846,0.005,3520.9,3520.8,0.4753]
[1762790621992,0.005,3520.9,3520.8,1.26612237]
[1762790622416,0.4731,3521.6,3520.9,3.8548]
[1762790622649,0.4731,3521.5,3520.9,3.8548]
[1762790622937,0.6406,3521.0,3520.9,3.8548]
[1762790623102,0.4731,3521.5,3520.9,3.8548]
[1762790623297,3.29750224,3521.0,3520.9,3.8548]
[1762790623555,2.8401829,3520.9,3520.1,1.259712]
[1762790623757,2.84040906,3520.7,3520.2,0.86310258]
[1762790623913,2.84045119,3520.6,3520.2,0.86310258]
[1762790624247,2.8403948,3520.7,3520.2,0.86310258]
[1762790624449,2.84043676,3520.6,3520.2,0.86310258]
[1762790624953,2.84051779,3520.5,3520.1,6.31]
[1762790625114,2.89004768,3520.2,3520.1,6.31]
[1762790625318,0.1832,3520.9,3519.7,1.07447177]
[1762790625514,2.84057566,3520.5,3520.1,0.4753]
[1762790625839,0.1832,3520.9,3519.4,6.31]
[1762790625840,2.84034424,3520.7,3519.5,6.31]
[1762790626149,0.4731,3520.8,3519.5,6.31]
[1762790626150,0.4731,3520.8,3519.6,1.939952]
[1762790626316,0.4731,3520.8,3519.6,2.432352]
[1762790626317,2.84067193,3520.3,3519.6,2.432352]
[1762790626519,3.31342211,3520.8,3519.6,2.432352]
[1762790626718,3.31342211,3520.8,3519.6,1.939952]
[1762790626719,2.84081095,3520.2,3519.6,1.939952]
[1762790626962,2.84081095,3520.2,3519.6,2.51789228]
[1762790627114,2.84081095,3520.2,3519.7,0.93202923]
[1762790627323,0.4731,3520.7,3519.7,0.93202923]
[1762790627637,2.84073403,3520.3,3519.7,0.93202923]
[1762790627838,2.84073837,3520.3,3519.7,0.93202923]
[1762790628018,2.84080044,3520.2,3519.7,0.93202923]
[1762790628217,2.8409898,3519.9,3519.8,3.86]
[1762790628417,0.878604,3520.6,3519.3,3.86]
[1762790628720,0.405504,3520.6,3519.3,3.86]
[1762790628932,2.84112677,3519.8,3519.3,3.86]
[1762790629157,2.84115158,3519.7,3519.3,1.259712]
[1762790629366,2.84115158,3519.7,3519.3,3.86]
[1762790630019,0.1832,3520.5,3519.6,0.4753]
[1762790630255,0.1832,3520.5,3519.4,2.84132884]
[1762790630560,2.84096421,3520.0,3519.4,1.259712]
[1762790630853,2.84098458,3520.0,3519.4,1.259712]
[1762790631086,2.84098458,3520.0,3519.4,4.1011054]
[1762790631292,0.4731,3520.4,3519.4,2.4787066]
[1762790631491,0.4731,3520.4,3519.6,2.84115374]
[1762790631648,0.4731,3520.4,3519.5,0.4924]
[1762790631649,2.84066698,3520.3,3519.5,3.33370723]
[1762790631847,2.84066858,3520.3,3519.7,2.84115123]
[1762790632080,2.84066698,3520.3,3519.5,1.752112]
[1762790632257,2.84066911,3520.3,3519.5,0.4924]
[1762790632463,2.84095601,3520.0,3519.4,4.1010728]
[1762790632781,2.84084923,3520.1,3519.6,1.259712]
[1762790632947,2.84088328,3520.1,3519.5,2.84130438]
[1762790633348,2.84088328,3520.1,3519.4,1.259712]
[1762790633349,2.84076094,3520.2,3519.6,2.84120971]
[1762790633548,2.84081726,3520.2,3519.5,2.84125712]
[1762790633784,2.84084924,3520.1,3519.4,1.259712]
[1762790633986,0.4731,3520.4,3519.7,2.84114034]
[1762790634178,2.84058629,3520.4,3519.7,2.84114034]
[1762790634375,3.02375333,3520.5,3519.9,2.84098039]
[1762790634553,0.4731,3520.8,3519.8,1.259712]
[1762790634749,2.84042492,3520.6,3519.9,10.17]
[1762790634984,0.4731,3520.7,3519.9,11.59708169]
[1762790635472,3.31351676,3520.7,3520.1,2.84076237]
[1762790635675,2.84042492,3520.6,3520.0,1.259712]
[1762790636176,7.901549,3524.4,3520.5,0.4586]
[1762790636177,0.1807,3521.2,3520.5,0.4586]
[1762790636490,3.02070324,3521.2,3520.6,7.15898981]
[1762790636785,0.001,3520.8,3520.7,3.86]
[1762790636994,2.84126357,3520.8,3520.7,3.86]
[1762790637297,0.001,3520.8,3520.7,3.86]
[1762790637486,2.34119813,3520.9,3520.7,3.86]
[1762790637679,0.1807,3521.2,3520.7,3.86]
[1762790637879,2.84010224,3521.0,3520.7,3.86]
[1762790638081,3.33163561,3521.1,3520.7,3.86]
[1762790638082,2.84002158,3521.1,3520.7,3.86]
[1762790638259,2.83994992,3521.2,3520.7,5.16105054]
[1762790638678,2.84004211,3521.1,3520.7,5.16105054]
[1762790638879,2.83997049,3521.2,3520.7,5.16105054]
[1762790639212,2.84002606,3521.1,3520.7,5.16105054]
[1762790639386,0.4916,3521.3,3520.7,5.16105054]
[1762790639578,2.84017039,3521.0,3520.7,3.86]
[1762790639908,0.4916,3521.2,3520.8,3.86]
[1762790640110,0.1807,3521.4,3520.8,3.86]
[1762790640309,0.1807,3521.8,3520.9,3.86]
[1762790640512,2.84007816,3521.1,3520.9,3.86]
[1762790640721,3.29580224,3521.0,3520.9,3.86]
[1762790641013,2.84066698,3520.3,3520.2,3.86]
[1762790641184,2.84052482,3520.5,3520.2,3.86]
[1762790641388,0.4916,3521.4,3520.4,0.4586]
[1762790641585,1.751312,3521.4,3520.4,0.4586]
[1762790641789,3.33117507,3521.7,3520.6,1.259712]
[1762790642012,0.4916,3521.7,3520.5,3.86]
[1762790642214,2.87482492,3520.6,3520.5,3.86]
[1762790642520,2.87482492,3520.6,3519.5,3.86]
[1762790642521,2.84106271,3519.9,3519.5,3.86]
[1762790642721,2.84131268,3519.5,3519.4,0.002]
[1762790643725,0.1807,3519.8,3519.4,0.002]
[1762790644030,2.84131268,3519.5,3519.4,0.002]
[1762790644378,0.4557,3519.5,3519.4,0.002]
[1762790644601,5.04832468,3519.5,3519.4,0.002]
[1762790644786,3.24705889,3519.2,3519.1,0.005]
[1762790644988,2.87895489,3519.2,3519.1,0.005]
[1762790645592,3.37055489,3519.2,3519.1,0.005]
[1762790647345,2.87895489,3519.2,3519.1,0.005]
[1762790647722,3.37055489,3519.2,3519.1,0.005]
[1762790648445,0.4916,3519.7,3519.1,0.005]
[1762790648741,2.84155489,3519.2,3519.1,0.005]
[1762790649055,3.78885489,3519.2,3519.1,0.005]
[1762790649261,0.1807,3519.8,3519.1,0.005]
[1762790649262,0.4916,3519.5,3519.1,0.005]
[1762790649413,0.1807,3519.8,3519.1,0.005]
[1762790649414,2.84155489,3519.2,3519.1,0.005]
[1762790649850,3.78885489,3519.2,3519.1,0.005]
[1762790650628,4.19435889,3519.2,3519.1,0.005]
[1762790650832,5.45407089,3519.2,3519.1,0.005]
[1762790651245,3.78885489,3519.2,3519.1,0.005]
[1762790651561,0.4916,3519.7,3519.1,0.005]
[1762790652034,0.1807,3519.8,3519.1,0.005]
[1762790652035,0.1807,3519.8,3519.1,0.1975]
[1762790652352,0.1807,3519.8,3519.1,0.50162755]
[1762790652557,2.84155489,3519.2,3519.1,0.005]
[1762790653018,3.78885489,3519.2,3519.1,0.005]
[1762790653225,2.84155489,3519.2,3519.1,0.007]
[1762790653755,3.78885489,3519.2,3519.1,0.007]
[1762790653926,2.84155489,3519.2,3519.1,0.007]
[1762790654322,3.29725489,3519.2,3519.1,0.007]
[1762790654523,2.84155489,3519.2,3519.1,0.007]
[1762790654837,2.84241152,3519.4,3519.1,0.007]
[1762790655036,2.84240355,3519.4,3519.1,0.007]
[1762790655357,0.001,3519.4,3519.3,0.4586]
[1762790655533,0.001,3519.4,3519.3,0.83788296]
[1762790655737,0.001,3519.4,3519.3,4.3186]
[1762790656076,0.001,3519.4,3519.3,4.8022]
[1762790656739,0.001,3519.4,3519.3,4.3186]
[1762790657374,2.56642626,3519.8,3519.3,4.3186]
[1762790657526,0.4916,3519.8,3519.3,3.86]
[1762790657731,0.1807,3520.2,3519.3,4.2469]
[1762790657926,2.84116465,3519.7,3519.3,4.7305]
[1762790658133,2.84082838,3520.1,3519.3,4.2469]
[1762790658324,2.84129439,3519.6,3519.3,4.2469]
[1762790658528,2.8411807,3519.7,3519.3,4.2469]
[1762790658771,2.84124281,3519.6,3519.3,4.2469]
[1762790658929,0.4916,3520.1,3519.3,7.57190184]
[1762790658930,2.84082838,3520.1,3519.3,7.57190184]
[1762790659124,2.84104156,3519.9,3519.5,0.4586]
[1762790659363,2.84105631,3519.9,3519.5,0.4586]
[1762790659665,2.84128285,3519.6,3519.3,4.2469]
[1762790659836,0.4916,3519.9,3519.3,4.2469]
[1762790660028,0.1807,3520.2,3519.4,0.42539]
[1762790660566,2.84075375,3520.2,3519.6,2.84118225]
[1762790660860,0.6723,3521.8,3520.3,2.84066146]
[1762790661026,3.51179739,3521.8,3520.7,0.4586]
[1762790661238,2.84000918,3521.2,3520.7,0.33274641]
[1762790661435,0.4916,3521.7,3520.7,0.33274641]
[1762790661673,0.4916,3521.7,3519.7,1.5275595]
[1762790661674,0.4931,3520.8,3519.7,2.7597584]
[1762790661883,0.4931,3520.8,3519.5,0.1925]
[1762790661884,0.4916,3520.7,3519.5,0.1925]
[1762790662063,0.1792,3520.2,3519.5,0.1925]
[1762790662264,0.1792,3520.2,3519.5,1.452212]
[1762790662462,0.1792,3520.2,3519.5,0.1925]
[1762790662639,2.84104856,3519.9,3519.2,2.84150218]
[1762790662842,2.84114749,3519.8,3519.3,0.63683016]
[1762790663281,2.84121961,3519.7,3519.3,0.63683016]
[1762790663490,2.84100491,3519.9,3519.1,0.1995]
[1762790663491,0.1807,3519.9,3519.1,0.1995]
[1762790663787,0.4916,3519.8,3519.1,0.007]
[1762790664084,3.70275889,3519.2,3519.1,1e-08]
[1762790664309,4.19355889,3519.2,3519.1,1e-08]
[1762790665146,3.78805489,3519.2,3519.1,1e-08]
[1762790666461,5.45327089,3519.2,3519.1,1e-08]
[1762790667564,2.84195867,3518.7,3518.6,0.002]
[1762790667749,4.54787067,3518.7,3518.6,0.002]
[1762790667950,5.04667067,3518.7,3518.6,0.002]
[1762790668248,5.45217467,3518.7,3518.6,0.002]
[1762790670304,0.4462,3518.7,3518.6,0.002]
[1762790670448,2.84195867,3518.7,3518.6,0.002]
[1762790670848,2.84168717,3519.1,3518.6,0.002]
[1762790671087,0.1863,3519.5,3518.6,0.4527]
[1762790671345,2.84189143,3518.8,3518.6,0.4527]
[1762790671761,2.84195867,3518.7,3518.6,0.002]
[1762790672673,3.80265867,3518.7,3518.6,0.002]
[1762790672878,4.20816267,3518.7,3518.6,0.002]
[1762790673993,5.46787467,3518.7,3518.6,0.002]
[1762790674665,5.46787467,3518.7,3518.1,1e-08]
[1762790674666,8.29686598,3518.2,3518.1,1e-08]
[1762790674857,9.55657798,3518.2,3518.1,1e-08]
[1762790675055,10.05537798,3518.2,3518.1,1e-08]
[1762790675288,5.46827857,3518.2,3518.1,1e-08]
[1762790677808,5.46827857,3518.2,3515.8,1.01670328]
[1762790677809,0.438604,3516.1,3515.8,1.01670328]
[1762790678017,2.84478834,3515.2,3515.1,0.005]
[1762790678164,5.89023524,3515.2,3515.1,0.005]
[1762790678370,5.04480434,3515.2,3515.1,0.005]
[1762790679688,2.84559786,3514.2,3513.4,0.4574]
[1762790679871,8.78620127,3514.2,3512.8,0.4574]
[1762790680066,8.78620127,3514.2,3512.8,1.717112]
[1762790680272,10.04591327,3514.2,3512.8,0.4574]
[1762790680499,10.04591327,3514.2,3512.2,0.4604]
[1762790680705,10.04591327,3514.2,3514.1,1e-08]
[1762790681074,10.04591327,3514.2,3512.2,0.4604]
[1762790681075,2.84640783,3513.2,3512.2,0.4604]
[1762790681275,3.29201183,3513.2,3512.2,0.003]
[1762790681572,2.88650783,3513.2,3512.2,0.003]
[1762790681794,2.84586632,3513.9,3512.2,0.003]
[1762790681795,0.1863,3514.6,3513.1,0.5104]
[1762790681993,2.84547234,3514.4,3513.3,2.84625107]
[1762790682193,2.84568596,3514.1,3513.4,0.62031298]
[1762790682379,0.1863,3514.6,3513.4,3.46655481]
[1762790682595,2.84558913,3514.3,3513.4,1.07771298]
[1762790682794,2.84593277,3513.8,3513.4,0.4574]
[1762790683109,0.405504,3514.5,3513.1,0.053]
[1762790683110,2.84573292,3514.1,3513.2,2.84640158]
[1762790683308,2.84578155,3514.0,3513.1,3.35686659]
[1762790683494,2.8456922,3514.1,3513.1,0.5104]
[1762790683837,3.25094166,3514.4,3513.2,0.4574]
[1762790683838,2.84552157,3514.3,3513.2,0.4574]
[1762790684116,0.405504,3514.3,3513.1,0.053]
[1762790684425,0.405504,3513.7,3513.1,0.005]
[1762790684717,1.665216,3513.9,3513.1,0.005]
[1762790684923,3.71381183,3513.2,3513.1,0.005]
[1762790685882,0.405504,3513.7,3513.1,0.005]
[1762790686082,7.43298943,3513.9,3513.1,0.053]
[1762790686318,2.84604792,3513.7,3513.1,0.053]
[1762790686626,2.84622246,3513.5,3513.1,0.053]
[1762790686804,1.665216,3513.8,3513.1,0.053]
[1762790686805,1.259712,3513.8,3513.1,0.005]
[1762790687132,0.405504,3513.7,3513.1,0.005]
[1762790687308,2.84640783,3513.2,3513.1,0.005]
[1762790688084,0.405504,3513.6,3513.1,0.005]
[1762790688299,1.758512,3514.2,3513.1,0.053]
[1762790688701,2.84640475,3513.3,3513.1,0.053]
[1762790689108,1.259712,3513.7,3513.1,0.053]
[1762790689389,0.4988,3514.1,3513.1,0.053]
[1762790689390,2.84613628,3513.6,3513.1,0.053]
[1762790689584,1.259712,3513.9,3513.1,3.64685235]
[1762790689811,0.6851,3514.6,3513.2,0.4574]
[1762790690031,0.6851,3514.6,3513.4,2.84621611]
[1762790690220,0.6851,3514.6,3513.5,3.30349659]
[1762790690221,2.84554477,3514.3,3513.5,3.30349659]
[1762790690723,2.84577492,3514.0,3513.5,0.4574]
[1762790690926,2.84574388,3514.1,3513.5,0.78776158]
[1762790691142,3.53006092,3515.0,3513.6,0.4574]
[1762790691359,3.03104089,3515.3,3514.5,0.6478]
[1762790691524,2.84478834,3515.2,3514.5,0.6478]
[1762790691724,2.84494856,3515.1,3514.5,0.6478]
[1762790691925,2.84495308,3515.0,3514.5,0.6478]
[1762790692124,0.1913,3515.9,3514.6,3.30262331]
[1762790692344,0.1913,3515.9,3514.6,0.4574]
[1762790692345,0.6901,3515.9,3514.6,0.4574]
[1762790692569,0.005,3515.9,3514.7,0.4574]
[1762790692755,2.8444743,3515.6,3514.7,0.4574]
[1762790692922,2.84441119,3515.7,3514.7,3.30257222]
[1762790693130,2.84431492,3515.8,3514.8,0.34996722]
[1762790693354,2.84444644,3515.7,3515.0,2.84492961]
[1762790693557,2.84444168,3515.7,3514.8,0.4574]
[1762790693753,2.84440017,3515.7,3515.0,2.84487929]
[1762790694051,0.005,3515.9,3515.1,0.0985]
[1762790694458,0.005,3515.9,3515.2,3.34032707]
[1762790694630,0.005,3515.9,3515.2,1.12397748]
[1762790694835,2.84450404,3515.6,3515.2,0.4956]
[1762790695154,2.84440652,3515.7,3515.2,0.4956]
[1762790695359,0.005,3515.9,3515.2,0.4956]
[1762790695560,0.005,3515.9,3515.8,0.473]
[1762790695732,0.005,3515.9,3515.8,0.9585]
[1762790696344,0.005,3515.9,3515.8,1.62324167]
[1762790696659,0.005,3515.9,3515.1,0.0985]
[1762790696825,0.005,3515.9,3515.2,0.4855]
[1762790697026,2.84450051,3515.6,3515.1,0.584]
[1762790697459,2.84450051,3515.6,3515.5,0.473]
[1762790697663,0.005,3515.9,3515.2,0.4855]
[1762790697870,2.84446467,3515.6,3515.5,0.473]
[1762790698163,0.005,3515.9,3515.8,0.473]
[1762790698662,0.005,3515.9,3515.8,5.06251486]
[1762790698875,0.005,3516.9,3515.9,4.10393396]
[1762790699080,0.005,3516.9,3516.0,0.4855]
[1762790699245,0.005,3516.9,3516.8,0.473]
[1762790699655,0.005,3516.9,3516.4,0.4855]
[1762790699986,0.005,3516.9,3516.8,0.473]
[1762790700684,2.84841323,3516.9,3516.8,0.473]
[1762790700878,0.005,3516.9,3516.8,0.473]
[1762790701459,0.005,3516.9,3516.2,2.84393012]
[1762790701643,0.005,3516.9,3516.4,2.84374993]
[1762790701943,0.005,3516.9,3515.5,0.4855]
[1762790701944,2.84387283,3516.4,3515.5,0.4855]
[1762790702144,0.405504,3516.8,3515.5,0.4855]
[1762790702342,0.4723,3516.7,3515.5,0.4855]
[1762790702619,0.4723,3516.7,3515.1,0.0985]
[1762790702620,2.84451921,3515.6,3515.1,0.0985]
[1762790702880,2.8436558,3516.6,3515.1,0.0985]
[1762790702881,2.84454677,3515.5,3515.2,0.4855]
[1762790703044,2.84460556,3515.5,3515.2,0.4855]
[1762790703240,0.1967,3515.9,3515.1,0.0985]
[1762790703446,2.84475976,3515.3,3514.5,0.1971]
[1762790703668,0.405504,3515.8,3514.6,1.259712]
[1762790703669,2.84487091,3515.1,3514.6,1.259712]
[1762790703984,2.84438376,3515.7,3514.6,1.259712]
[1762790704185,0.405504,3515.8,3514.5,0.1971]
[1762790704486,0.405504,3516.8,3515.7,0.6631]
[1762790704647,0.005,3516.9,3516.7,0.473]
[1762790704848,0.005,3516.9,3516.8,0.473]
[1762790705659,2.83404128,3517.1,3516.8,0.473]
[1762790705861,0.4723,3517.7,3516.4,1.259712]
[1762790706061,2.84340974,3517.0,3516.4,1.259712]
[1762790706272,2.84336339,3517.0,3516.4,1.259712]
[1762790706493,0.4723,3517.7,3516.5,0.41036042]
[1762790706693,2.84334513,3517.0,3516.4,2.84379904]
[1762790706869,2.84325705,3517.1,3516.4,2.84379904]
[1762790707074,2.84325705,3517.1,3516.5,2.84372347]
[1762790707403,2.84325705,3517.1,3516.3,0.4855]
[1762790707404,2.84333848,3517.0,3516.4,2.84379852]
[1762790707606,2.84333848,3517.0,3516.3,0.4855]
[1762790707802,2.84333848,3517.0,3516.4,2.84381081]
[1762790707991,2.84344495,3516.9,3516.3,0.94442721]
[1762790708200,0.405504,3517.5,3516.3,0.4855]
[1762790708808,2.84330551,3517.1,3516.4,2.84375129]
[1762790709104,2.84434346,3517.0,3516.3,3.32937191]
[1762790709282,0.001,3517.0,3516.5,2.84372162]
[1762790709681,0.001,3517.0,3516.5,0.4855]
[1762790709886,0.001,3517.0,3516.1,0.4855]
[1762790710086,0.1967,3516.9,3516.1,0.4855]
[1762790710297,2.84365175,3516.7,3516.1,0.4855]
[1762790710491,0.1967,3516.9,3516.1,0.4855]
[1762790710693,0.1967,3516.9,3515.7,0.1901]
[1762790710907,0.405504,3516.7,3515.3,0.1901]
[1762790711073,2.84419565,3516.0,3515.3,0.1901]
[1762790711273,1.665216,3516.4,3515.1,0.005]
[1762790711474,2.84462043,3515.5,3515.1,0.1951]
[1762790711674,0.405504,3515.8,3515.1,0.005]
[1762790711911,0.4723,3515.8,3515.1,0.005]
[1762790712071,3.32038834,3515.2,3515.1,0.005]
[1762790712273,4.19739234,3515.2,3515.1,0.005]
[1762790712484,3.31958834,3515.2,3515.1,0.005]
[1762790712672,4.19739234,3515.2,3515.1,0.005]
[1762790712869,3.79188834,3515.2,3515.1,0.005]
[1762790713074,5.45710434,3515.2,3515.1,0.005]
[1762790713896,2.84559786,3514.2,3514.1,0.005]
[1762790714728,3.77259786,3514.2,3514.1,0.005]
[1762790715029,3.30049786,3514.2,3514.1,0.005]
[1762790715195,2.84559786,3514.2,3514.1,0.005]
[1762790715723,4.17810186,3514.2,3514.1,0.005]
[1762790716690,5.43781386,3514.2,3514.1,1e-08]
[1762790717678,3.70600186,3514.2,3514.1,1e-08]
[1762790717925,3.30069786,3514.2,3514.1,1e-08]
[1762790718324,0.405504,3514.4,3514.1,1e-08]
[1762790718626,2.84559786,3514.2,3514.1,1e-08]
[1762790718986,3.25065516,3514.8,3514.1,1e-08]